Cogmind - Beta 13 X2 @@@ ROGUE MODE // 2024.01.24 @ 18:35:46 Player: Minty Result: Destroyed by G-73 Enforcer with Phase Gun Performance ------------- Evolutions (9) 4500 Regions Visited (21) 4200 Robots Destroyed (305) 1525 Value Destroyed (14302) 14302 Prototype IDs (42) 840 Alien Tech Used (0) 0 Bonus (7805) 7805 TOTAL SCORE: 33172 Bonus ------- Triggered High Security 500 High Alert Combat Kills 3400 Follower Combat Kills 1087 Aligned with FarCom 300 Met Warlord at Base 500 MAIN.C Attacked Warlord 500 Met Warlord at Research 2000 Friendly Fire -482 Cogmind --------- Core Integrity 0/1600 Matter 170/300 Energy 98/100 System Corruption 16% Temperature Cool (0) Movement Core (50) Location -1/Access Parts ------- > --- POWER (2) -------- (None) > --- PROPULSION (8) --- High-density Centrium Heavy Treads > --- UTILITY (9) ------ Improved Corruption Screen > --- WEAPON (6) ------- (None) > --- INVENTORY (5) ---- Compact Particle Reactor Compact Particle Reactor Firepult Advanced Datajack Peak State ------------ > --- POWER ------------ Light Quantum Reactor Light Quantum Reactor > --- PROPULSION ------- Armored Heavy Treads Armored Heavy Treads Armored Heavy Treads Armored Heavy Treads > --- UTILITY ---------- Advanced Heat Sink Advanced Cooling System High-capacity Storage Unit Improved Target Analyzer Improved Armor Integrity Analyzer Advanced Phase Shifter Centrium Light Armor Plating Centrium Light Armor Plating Improved System Shield > --- WEAPON ----------- Heavy Laser Phase Gun Enhanced Quantum Rifle Enhanced Quantum Rifle Linear Accelerator Fusion Bomb Launcher > --- INVENTORY -------- Compact Particle Reactor Compact Particle Reactor Compact Particle Reactor Quantum Reactor Armored Heavy Treads Myomer Leg Myomer Leg Myomer Leg Myomer Leg Advanced Cooling System Advanced Cooling System Advanced Phase Shifter Phase Gun Disruptor Cannon Firepult Fusion Bomb Launcher Fusion Bomb Launcher [Rating: 198] Favorites ----------- Power Antimatter Reactor Engine Improved Deuterium Engine Power Core Nuclear Core Reactor Antimatter Reactor Propulsion Improved Medium Treads Treads Improved Medium Treads Leg Improved Carbon-fiber Leg Flight Unit VTOL Module Utility Advanced Heat Sink Device Advanced Heat Sink Storage Small Storage Unit Processor Advanced Signal Interpreter Hackware Improved System Shield Protection Light Armor Plating Weapon Heavy Beamcaster Energy Gun Heavy Beamcaster Energy Cannon Plasma Cannon Ballistic Gun Improved KE Penetrator Ballistic Cannon Linear Accelerator Launcher Fusion Bomb Launcher Special Weapon Improved Remote Datajack Impact Weapon Heavy Mace Slashing Weapon Centrium Greatsword Piercing Weapon Vortex Lance Special Melee Weapon Improved Datajack Build | -11 -10 -10 -10 -9 -8 -8 -7 -6 -6 -6 -6 -6 -5 -5 -5 -5 -4 -4 -3 -2 -1 ------- Run | Yrd Mat Min Exi Min Mat Sto Fac Fac Was Fac Low Low Fac Upp Upp War Pro Fac Res Res Acc Slots Evolved 18 | . . . . . 4 . 2 2 . . . . 2 . . . . 2 2 2 2 Power 1 | . . . . . . . . 1 . . . . . . . . . . . . . Propulsion 6 | . . . . . 1 . . . . . . . 1 . . . . . 1 1 2 Utility 7 | . . . . . 2 . 2 . . . . . 1 . . . . 1 1 . . Weapon 4 | . . . . . 1 . . 1 . . . . . . . . . 1 . 1 . Parts Attached 380 | . 4 7 . 1 7 16 20 26 19 39 4 2 44 9 24 10 16 35 11 38 48 Power 47 | . . 1 . . . 1 1 3 5 3 . . 6 2 6 . 1 4 2 8 4 Engine 18 | . . . . . . . 1 3 1 3 . . 3 1 4 . 1 . 1 . . Core 10 | . . 1 . . . 1 . . . . . . 3 1 1 . . 3 . . . Reactor 19 | . . . . . . . . . 4 . . . . . 1 . . 1 1 8 4 Propulsion 77 | . . 2 . . 1 3 4 2 3 6 2 . 12 3 6 . 3 11 2 5 12 Treads 44 | . . 2 . . 1 3 . . 1 3 2 . 8 3 6 . 3 1 2 5 4 Leg 28 | . . . . . . . 4 2 2 3 . . 4 . . . . 5 . . 8 Wheel . | . . . . . . . . . . . . . . . . . . . . . . Hover . | . . . . . . . . . . . . . . . . . . . . . . Flight 5 | . . . . . . . . . . . . . . . . . . 5 . . . Utility 105 | . 2 3 . 1 2 4 5 10 3 17 . 1 9 2 5 2 4 9 4 10 12 Device 68 | . 1 1 . . . 2 1 6 2 14 . 1 6 2 5 1 3 4 4 6 9 Storage 4 | . . . . . . . . 1 . . . . 1 . . . . 2 . . . Processor 10 | . 1 1 . . . . . . . 1 . . 2 . . 1 . 2 . 1 1 Hackware 10 | . . . . 1 . 1 2 1 . 2 . . . . . . . 1 . 1 1 Protection 13 | . . 1 . . 2 1 2 2 1 . . . . . . . 1 . . 2 1 Artifact . | . . . . . . . . . . . . . . . . . . . . . . Weapon 151 | . 2 1 . . 4 8 10 11 8 13 2 1 17 2 7 8 8 11 3 15 20 Energy Gun 58 | . 1 1 . . 3 5 3 1 5 3 1 1 7 . 3 4 2 3 1 6 8 Energy Cannon 39 | . . . . . . . 4 9 1 6 . . 4 . . 1 2 2 1 3 6 Ballistic Gun 19 | . . . . . . 1 . . 1 1 1 . 6 . . . 1 3 1 4 . Ballistic Cannon 7 | . . . . . . . . . . . . . . 1 . . 1 1 . 1 3 Launcher 12 | . 1 . . . . 1 3 1 . 1 . . . 1 . . . . . 1 3 Special Weapon 3 | . . . . . . . . . . . . . . . 1 . 1 1 . . . Impact Weapon 1 | . . . . . 1 . . . . . . . . . . . . . . . . Slashing Weapon 9 | . . . . . . . . . 1 2 . . . . 2 2 1 1 . . . Piercing Weapon 2 | . . . . . . . . . . . . . . . 1 1 . . . . . Special Melee Weapon 1 | . . . . . . 1 . . . . . . . . . . . . . . . Unidentified Prototypes 13 | . . . . . . 2 . 2 1 . . . 2 . . 3 . . . 2 1 Corrupted Parts 11 | . . 1 . 1 . . . 1 . . . . . . 2 . . 1 2 2 1 System Corruption 53 | . . 2 . 4 . . . 6 . . . . . . 20 . . 2 3 7 9 Parts Lost 131 | . . . . . . . . 2 3 8 . 8 9 3 11 . 20 14 3 12 38 Power 23 | . . . . . . . . . . 1 . 1 3 1 5 . 3 3 . 1 5 Propulsion 32 | . . . . . . . . . 1 2 . 2 2 1 1 . 6 6 . 1 10 Utility 32 | . . . . . . . . 2 1 2 . 3 2 . 2 . 5 . 2 4 9 Weapon 44 | . . . . . . . . . 1 3 . 2 2 1 3 . 6 5 1 6 14 Highest Loss Streak 13 | . . . . . . . . 1 3 3 . 8 3 2 5 . 13 7 2 9 9 To Critical Strikes . | . . . . . . . . . . . . . . . . . . . . . . Average Slot Usage (%) 81 | . 96 99 100 100 97 99 99 97 75 76 96 62 84 98 88 97 50 61 69 76 61 Engine 3 | . 14 4 . . . . . 12 8 1 13 6 4 . 4 8 3 . 1 . . Core 2 | . . 9 14 14 9 8 6 . . . . . 3 10 . . . 5 . . . Reactor 2 | . . . . . . . . . 4 10 . . . . . . . . 5 8 6 Treads 10 | . . 7 28 28 25 27 12 . 2 8 11 . 10 22 21 23 5 3 8 12 8 Leg 5 | . 28 20 . . . . 9 20 12 5 7 6 6 . . . . 3 . . 2 Device 13 | . 8 3 . . . 8 10 13 10 18 26 20 15 17 16 17 11 8 18 8 9 Storage 4 | . 14 14 14 14 9 9 7 5 3 . . . 3 5 5 5 4 4 4 4 3 Processor 4 | . 1 8 . . . . . . . . . . 9 11 11 11 8 6 9 9 7 Hackware 6 | . . . . . 9 5 19 11 . 2 13 6 5 5 5 5 4 4 4 6 5 Protection 3 | . . 1 14 14 18 13 7 5 5 3 . . . . . . 1 . . 2 4 Energy Gun 12 | . 16 28 28 28 23 26 10 4 14 15 9 12 13 2 8 16 3 4 1 12 13 Energy Cannon 4 | . . . . . . . 11 19 9 6 7 . . . . . . . 2 . . Ballistic Gun 2 | . 6 . . . . . . . . . 4 6 5 15 2 . . 2 4 4 . Naked Turns 191 | . . . . . . . . . . . . . . . . . 53 25 . . 113 Heaviest Build 128 | 13 16 19 19 19 28 29 45 67 103 104 63 50 70 78 80 70 70 80 116 128 128 Greatest Support 240 | 20 20 40 40 40 60 60 60 58 82 90 48 48 120 117 117 117 117 100 120 180 240 Greatest Overweight (x) 9 | . . . . . . . 1 1 2 5 2 2 2 . . . 9 8 1 . 4 Average Overweight (x) . | . . . . . . . . . 1 1 . 1 . . . . 3 . . . . Largest Inventory Capacity 20 | . 8 8 8 8 8 8 8 8 8 5 5 5 15 15 15 15 15 20 20 20 20 Average Capacity 10 | . 8 8 8 8 8 8 8 7 6 5 5 5 12 15 15 15 14 10 20 20 17 Most Carried 20 | . 8 8 8 8 8 8 8 8 8 5 5 5 15 12 15 15 15 10 20 20 20 Average Carried 9 | . 6 7 7 8 7 7 7 7 6 4 4 4 10 10 12 14 12 8 18 19 14 Final Capacity 20 | 8 8 8 8 8 8 8 8 8 5 5 5 5 15 15 15 15 5 20 20 20 5 Final Carried 20 | 6 7 8 8 8 8 8 8 8 5 5 5 4 11 11 15 15 5 8 19 20 5 Class Distribution -------------------- 25% | Scavenger-Skirmisher 18% | Mutant 13% | Scavenger-Gunner 11% | Hacker-Skirmisher 10% | Scavenger-Executioner 4% | Skirmisher 4% | Derelict-Gunner 4% | Scavenger-Mutant 3% | Gunner Dominant Class ---------------- Mutant | -10/Materials Mutant | -10/Mines Mutant | -10/Exiles Mutant | -9/Mines Tank | -8/Materials Scavenger-Tank | -8/Storage Hacker-Skirmisher | -7/Factory Hacker-Skirmisher | -6/Factory Skirmisher | -6/Waste Scavenger-Skirmisher | -6/Factory Scavenger-Gunner | -6/Lower Caves Scavenger-Gunner | -6/Lower Caves Scavenger-Skirmisher | -5/Factory Scavenger-Gunner | -5/Upper Caves Derelict-Gunner | -5/Upper Caves Derelict-Gunner | -5/Warlord Mutant | -4/Proximity Caves Scavenger-Skirmisher | -4/Factory Scavenger-Mutant | -3/Research Scavenger-Executioner | -2/Research Scavenger-Executioner | -1/Access Resources | -11 -10 -10 -10 -9 -8 -8 -7 -6 -6 -6 -6 -6 -5 -5 -5 -5 -4 -4 -3 -2 -1 ----------- Run | Yrd Mat Min Exi Min Mat Sto Fac Fac Was Fac Low Low Fac Upp Upp War Pro Fac Res Res Acc Matter Collected 6782 | 186 22 120 . 34 . 229 187 365 179 627 142 42 607 322 790 . 224 500 280 796 1130 Remotely . | . . . . . . . . . . . . . . . . . . . . . . Salvage Created 15839 | . 121 163 . 52 29 877 650 1232 600 2216 76 263 1139 407 1432 . 496 513 751 1126 3696 Parts 608 | . 8 13 . 4 . 40 34 49 4 71 4 6 47 26 49 . 32 33 27 29 132 Haulers Intercepted 5 | . . . . . . 3 . 1 . . . . 1 . . . . . . . . Recyclers Shooed 11 | . . 1 . . . 1 4 . . 1 . . 1 . . . . 1 . . 2 Parts Field Recycled . | . . . . . . . . . . . . . . . . . . . . . . Retrieved Matter . | . . . . . . . . . . . . . . . . . . . . . . Parts Self-Destructed 88 | . . . . . . . . . . . 4 5 . 24 29 . 26 . . . . Prevented 25 | . . . . . . . . . . . . . . 2 23 . . . . . . Kills | -11 -10 -10 -10 -9 -8 -8 -7 -6 -6 -6 -6 -6 -5 -5 -5 -5 -4 -4 -3 -2 -1 ------- Run | Yrd Mat Min Exi Min Mat Sto Fac Fac Was Fac Low Low Fac Upp Upp War Pro Fac Res Res Acc Combat Hostiles Destroyed 235 | . 3 3 . 3 . 16 10 16 2 31 3 5 13 6 24 . 13 11 9 14 53 Melee 13 | . . . . 1 . 1 . . . 3 . . . . 1 . 1 2 3 . 1 Guns 105 | . . 2 . 2 . 14 . 2 . 12 1 3 12 6 9 . 8 2 2 9 21 Cannons 41 | . . . . . . . 4 12 . 5 1 2 . . 5 . . 7 3 . 2 AOE 42 | . 3 . . . . . 3 1 . 3 1 . . . 9 . 3 . . 1 18 Classes Destroyed 24 | . 3 2 . 1 . 3 1 2 1 5 . . . . . . 1 . 2 2 1 Worker 22 | . . 2 . . . . . 3 . 2 . . 4 . . . . . . 1 10 Builder 16 | . 1 . . . . . 4 3 . 1 . . . . . . . . . . 7 Tunneler 2 | . . . . . . . . . . . . . . . . . . . 1 . 1 Hauler 5 | . . . . . . 3 . 1 . . . . 1 . . . . . . . . Recycler 8 | . . . . . . 2 . . . 2 . . 1 . . . . . . . 3 Minesweeper 1 | . . . . . . . . . . . . . . . . . 1 . . . . Mechanic 3 | . . . . . . . . 1 . . . . . . . . . . . . 2 Operator 2 | . . . . . . 1 1 . . . . . . . . . . . . . . Watcher 11 | . 1 . . . 1 . 2 3 . 1 . . 1 . . . . 1 . . 1 Swarmer 37 | . . . . 2 . 4 . 1 . 1 3 . . . 9 . 9 4 . . 4 Saboteur 1 | . . . . . . . . . . . . . . . . . . . . . 1 Grunt 105 | . 3 2 . 1 . 7 7 10 . 17 . 5 4 1 10 . 2 . 7 8 21 Brawler 3 | . . . . . . . . . . 1 . . . . 1 . . . . . 1 Duelist 6 | . . . . . . . . 2 . 1 . . . . 1 . . . . . 2 Protector 1 | . . . . . . . . . . 1 . . . . . . . . . . . Sentry 19 | . . 1 . . . 5 1 . . 4 . . 2 1 2 . 1 . . 1 1 Demolisher 1 | . . . . . . . . . . . . . . . . . . . . 1 . Specialist 2 | . . . . . . . . . . . . . . . . . . . 2 . . Hunter 28 | . . . . . . . . . . 3 . . 3 4 2 . . 4 . 3 9 Programmer 27 | . . . . . . . 2 3 . 1 . . 4 . . . . 3 . . 14 Heavy 1 | . . . . . . . . . . 1 . . . . . . . . . . . Behemoth 2 | . . . . . . . . . . 1 . . . . . . 1 . . . . Compactor 2 | . . . . . . . . . 2 . . . . . . . . . . . . Striker 1 | . . . . . . . . . . . . . . . . . . . . 1 . Best Kill Streak 28 | . 4 2 . 2 1 6 5 4 1 6 3 5 8 2 12 . 5 3 4 6 28 Combat Bots Only 16 | . 3 2 . 2 . 4 4 4 1 6 3 5 4 2 12 . 5 3 4 6 16 Max Kills in Single Turn 6 | . 3 1 . 1 1 2 3 2 1 2 1 1 2 1 5 . 2 1 1 4 6 Gunslinging 1 | . . . . . . 1 . . . . . . . . 1 . . . . . . Exploded 3 | . 2 . . . . . 2 1 . 2 1 . . . 3 . 2 . . 1 3 Melee 1 | . . . . 1 . 1 . . . 1 . . . . 1 . 1 1 1 . 1 Uniques/NPCs Destroyed . | . . . . . . . . . . . . . . . . . . . . . . Combat | -11 -10 -10 -10 -9 -8 -8 -7 -6 -6 -6 -6 -6 -5 -5 -5 -5 -4 -4 -3 -2 -1 -------- Run | Yrd Mat Min Exi Min Mat Sto Fac Fac Was Fac Low Low Fac Upp Upp War Pro Fac Res Res Acc Hostile Shots Fired 2202 | . 25 13 . 23 . 47 55 79 3 222 15 42 171 56 123 2 159 220 166 290 491 Missed 664 | . 5 4 . 5 . 15 21 20 . 57 4 10 72 7 41 2 44 65 38 61 193 Damage Taken 29950 | . 222 149 . 147 . 467 480 1092 533 2908 171 614 1876 822 1654 . 2268 2597 1067 4574 8309 Core 4556 | . 22 47 . 21 . 34 46 109 20 509 . 75 190 35 132 . 610 677 84 328 1617 Absorbed by Shields 2069 | . . . . . . . . . . . . . . . . . . . 1013 1056 . Reduced by Siege Mode 161 | . . . . . . . . . . . . . . . . . . . . 161 . Redirected to Shielding 23 | . . . . . . 23 . . . . . . . . . . . . . . . Ignored by Resistances 58 | . . . . . . . . . . 58 . . . . . . . . . . . Regen/Repaired (Parts) 1664 | . . . . . . 52 . 495 230 584 . . . . . 303 . . . . . Core Remaining (%) 64 | 100 . . . 64 . 93 93 . . . . 16 . . . . 3 41 93 77 . Volleys Fired 574 | . 14 11 . 6 1 27 20 50 2 62 4 11 57 20 44 . 44 29 20 39 113 Largest 6 | . 2 2 . 2 3 3 3 4 4 4 3 4 4 4 4 . 3 4 3 6 6 Hottest 469 | . 100 100 . 100 240 240 240 345 333 416 416 269 300 169 225 . 250 231 198 405 469 Shots Fired 1669 | . 28 24 . 12 3 81 56 165 8 194 12 37 184 72 96 . 51 76 54 142 374 Gun 1216 | . 23 24 . 12 3 81 9 39 6 150 7 29 169 60 50 . 47 46 36 116 309 Cannon 391 | . . . . . . . 43 120 2 43 5 8 15 6 37 . 3 29 18 25 37 Launcher 60 | . 5 . . . . . 4 6 . 1 . . . 6 9 . . . . 1 28 Special 2 | . . . . . . . . . . . . . . . . . 1 1 . . . Kinetic 393 | . 8 . . . . . . . . . 3 11 61 57 70 . 6 48 23 75 31 Thermal 1044 | . 15 24 . 12 3 81 52 159 8 175 9 26 109 9 17 . 3 20 13 60 249 Explosive 35 | . 5 . . . . . . . . 1 . . . . . . . . . 1 28 Electromagnetic 154 | . . . . . . . 4 6 . 18 . . 14 6 9 . . 7 18 6 66 Entropic 41 | . . . . . . . . . . . . . . . . . 41 . . . . Robot Hit Streak 16 | . 4 5 . 4 7 8 11 13 15 16 2 7 12 6 7 . 7 5 12 15 9 Robot Miss Streak 11 | . 3 2 . 2 1 5 3 4 . 5 11 9 8 4 4 . 7 4 3 5 6 Penetration Max 2 | . . . . . . . . . . . . . 1 . 1 . . 2 . . . Secondary Targets 10 | . . . . . . 2 . . . 1 . . 2 1 3 . 1 . . . . Max Gunslinging Chain 2 | . . . . . . 1 . . . 1 . . 1 1 2 . 1 . . . . Shots Hit Robots 1006 | . 15 19 . 7 3 63 36 94 8 121 6 22 119 35 60 . 29 43 46 75 205 Core Hits 642 | . 12 9 . 3 3 48 22 46 . 74 6 25 56 15 46 . 20 21 18 43 175 Critical Kills 18 | . . . . . . . 2 1 1 1 . . 1 3 2 . . 6 . 1 . Critical Parts Destroyed 12 | . . . . . . . . . . . . . 1 4 . . 2 5 . . . Critical Strikes 71 | . . 3 . 1 . . 2 5 1 9 . . 6 8 6 . 2 12 2 2 12 Burn 29 | . . 3 . 1 . . . 4 . 7 . . 3 . . . . . . 1 10 Meltdown 5 | . . . . . . . 2 1 1 1 . . . . . . . . . . . Destroy 23 | . . . . . . . . . . . . . 2 7 2 . . 11 . 1 . Blast 7 | . . . . . . . . . . . . . . 1 4 . . . . . 2 Corrupt 1 | . . . . . . . . . . . . . 1 . . . . . . . . Sever 4 | . . . . . . . . . . 1 . . . . . . . 1 2 . . Detonate 2 | . . . . . . . . . . . . . . . . . 2 . . . . Melee Attacks 31 | . . . . . . 1 . . . 5 . . . . 4 . 8 3 10 . . Impact . | . . . . . . . . . . . . . . . . . . . . . . Slashing 23 | . . . . . . . . . . 5 . . . . 4 . 1 3 10 . . Piercing . | . . . . . . . . . . . . . . . . . . . . . . Entropic 7 | . . . . . . . . . . . . . . . . . 7 . . . . Sneak Attacks 3 | . . . . . . 1 . . . . . . . . . . 1 . 1 . . Combat Hostiles . | . . . . . . . . . . . . . . . . . . . . . . Follow-up Attacks . | . . . . . . . . . . . . . . . . . . . . . . Damage Inflicted 37680 | . 444 242 . 104 65 1354 1456 2797 197 4401 190 513 2906 818 2664 . 1490 1102 1759 2408 12770 Guns 17805 | . 161 239 . 101 65 1331 129 480 135 2250 45 359 2634 581 821 . 1000 568 648 1749 4509 Cannons 7074 | . . . . . . . 815 1953 62 963 92 154 204 99 704 . 34 327 560 347 760 Explosions 10886 | . 283 . . . . . 496 301 . 791 53 . 47 138 910 . 226 . . 254 7387 Melee 1540 | . . . . . . . . . . 332 . . . . 229 . 229 199 551 . . Ramming 375 | . . 3 . 3 . 23 16 63 . 65 . . 21 . . . 1 8 . 58 114 Kinetic 6009 | . 36 . . . . . . . . . 23 154 1135 587 1377 . 54 580 442 1030 591 Thermal 18938 | . 174 239 . 101 65 1331 981 2433 197 3765 167 359 1558 93 307 . 232 201 206 1241 5288 Explosive 6420 | . 234 . . . . . . . . . . . . . . . . . . . 6186 Electromagnetic 3452 | . . . . . . . 459 301 . 239 . . 192 138 751 . 28 114 560 79 591 Impact . | . . . . . . . . . . . . . . . . . . . . . . Slashing 1311 | . . . . . . . . . . 332 . . . . 229 . . 199 551 . . Piercing . | . . . . . . . . . . . . . . . . . . . . . . Entropic 1175 | . . . . . . . . . . . . . . . . . 1175 . . . . Highest Corruption 29 | . . 2 2 6 . . 1 9 9 9 9 9 6 6 29 29 . 5 3 7 16 Average Corruption 8 | . . 2 2 2 . . 1 7 9 9 9 9 5 6 25 29 . 3 2 6 7 Corruption Purged . | . . . . . . . . . . . . . . . . . . . . . . Corruption Blocked 38 | . . . . . . . . . . . . . . . . . . . . 38 . Effects 359 | . . 9 6 2 . . 4 36 16 90 41 6 8 13 38 2 . 11 2 32 43 Message Errors 79 | . . 5 2 . . . 2 6 5 21 11 2 . 1 7 . . 2 . 7 8 Matter Fused 76 | . . 1 . 2 . . 1 8 4 16 9 1 . 4 7 2 . 2 . 11 8 Heat Flow Errors 49 | . . 1 2 . . . . 6 2 15 5 . 1 1 6 . . . 1 3 6 Energy Discharges 34 | . . . . . . . . 4 3 4 3 1 . 2 5 . . 4 . 2 6 Parts Rejected 8 | . . . . . . . . 2 . 2 . . 1 . 2 . . . . . 1 Parts Fused 4 | . . . . . . . . 1 . 1 . . . . . . . . . 2 . Data Loss (minor) 46 | . . . 2 . . . . 1 1 15 6 . 1 3 4 . . 1 1 3 8 Data Loss (major) 25 | . . . . . . . . 4 . 8 5 2 . . 2 . . . . . 4 Misfires 9 | . . 2 . . . . . 1 . 2 . . . 1 2 . . 1 . . . Alerts 8 | . . . . . . . . . 1 1 2 . 2 . . . . . . 1 1 Misdirections 1 | . . . . . . . . . . . . . . . 1 . . . . . . Weapon Failures 20 | . . . . . . . 1 3 . 5 . . 3 1 2 . . 1 . 3 1 Overload Shots . | . . . . . . . . . . . . . . . . . . . . . . Overflow Damage 781 | . 4 . . . . . 70 31 . 26 . . . 15 92 . 126 . 117 . 300 Projectiles 142 | . . . . . . . 59 31 . 5 . . . . . . . . 19 . 28 Explosions 359 | . 4 . . . . . 11 . . . . . . 15 48 . 9 . . . 272 Melee 280 | . . . . . . . . . . 21 . . . . 44 . 117 . 98 . . Knockbacks 17 | . . . . . . . 1 . . 1 . . . . 4 . . 3 . 2 6 Impact 4 | . . . . . . . 1 . . 1 . . . . . . . . . 1 1 Kinetic 13 | . . . . . . . . . . . . . . . 4 . . 3 . 1 5 Secondary . | . . . . . . . . . . . . . . . . . . . . . . Self-Inflicted Damage 1031 | . . . . . . . . 9 . 18 . . . . 220 . 41 1 . 134 608 Shots 35 | . . . . . . . . 1 . 2 . . . . 8 . 1 . . 4 19 Rammed 51 | . . . . 2 . 7 2 . . 16 . . 3 . . . 1 5 . 7 8 Targets Rammed 72 | . . 1 . 3 . 9 6 11 . 17 . . 3 . . . 1 5 . 7 9 Kicked 18 | . . 1 . . . . 4 11 . 1 . . . . . . . . . . 1 Crushed 3 | . . . . 1 . 2 . . . . . . . . . . . . . . . Highest Temperature 832 | . 244 288 174 159 177 342 278 529 258 755 211 118 225 150 455 . 350 331 360 387 832 Average Temperature 137 | . 98 100 84 71 89 116 106 170 123 188 91 58 50 16 122 . 160 121 112 131 163 Received Heat Transfer 3900 | . 120 54 . 12 . 198 183 396 . 582 . 336 351 36 198 . 114 . 295 449 576 Effects 74 | . . . . . . 1 3 8 . 30 . . . . 3 . . . 2 1 26 Shutdowns 23 | . . . . . . . . 4 . 9 . . . . 2 . . . . . 8 Energy Bleed 5 | . . . . . . . . 1 . 2 . . . . . . . . . . 2 Interference 18 | . . . . . . 1 3 1 . 3 . . . . . . . . 2 1 7 Matter Decay 6 | . . . . . . . . . . 3 . . . . . . . . . . 3 Short Circuit 5 | . . . . . . . . . . 3 . . . . 1 . . . . . 1 Damage (minor) 5 | . . . . . . . . . . 4 . . . . . . . . . . 1 Damage (major) 8 | . . . . . . . . 2 . 4 . . . . . . . . . . 2 Damage (core) 4 | . . . . . . . . . . 2 . . . . . . . . . . 2 Siege Activations 2 | . . . . . . . . . . . . . . . . . . . . 1 1 Total Turns 24 | . . . . . . . . . . . . . . . . . . . . 17 7 Longest Duration 17 | . . . . . . . . . . . . . . . . . . . . 17 7 Robots Corrupted 3 | . . . . . . . 1 . . . . . . . . . . . 1 . 1 Combat Hostiles 3 | . . . . . . . 1 . . . . . . . . . . . 1 . 1 Parts Fried 10 | . . . . . . . 3 1 . . . . . . 1 . . 1 3 . 1 Impact Corruptions . | . . . . . . . . . . . . . . . . . . . . . . Robots Melted 33 | . . 1 . . . 1 2 1 2 9 . . 1 . . . 1 . . 4 11 Combat Hostiles 31 | . . 1 . . . 1 2 1 2 8 . . 1 . . . 1 . . 4 10 Parts Melted 133 | . . 2 . . 1 6 7 12 1 30 . . 18 1 . . 6 . . 13 36 Heat Transferred 41153 | . 420 925 . 370 150 3050 1825 5135 322 8409 388 518 3200 185 359 . 720 333 333 3406 11105 Parts Sabotaged 4 | . . . . . . . . . . . . . . . . . . . . . 4 Parts Stolen . | . . . . . . . . . . . . . . . . . . . . . . Parts Stripped . | . . . . . . . . . . . . . . . . . . . . . . Power Chain Reactions 10 | . . . . . . . 1 1 . 2 . . . . 2 . . . . . 4 Missiles Intercepted . | . . . . . . . . . . . . . . . . . . . . . . Alert | -11 -10 -10 -10 -9 -8 -8 -7 -6 -6 -6 -6 -6 -5 -5 -5 -5 -4 -4 -3 -2 -1 ------- Run | Yrd Mat Min Exi Min Mat Sto Fac Fac Was Fac Low Low Fac Upp Upp War Pro Fac Res Res Acc Peak Influence 1897 | . 201 85 . 127 65 493 295 389 136 1376 . . 390 . . . . 980 250 250 1897 Initial 900 | . . 25 . . 49 27 162 79 136 . . . 253 . . . . 900 141 103 54 Average 494 | . 53 58 . 58 51 276 192 231 69 972 . . 274 . . . . 743 156 130 1076 Maximum Alert Level 5 | . 1 . . . . 2 1 1 . 4 . . 1 . . . . 3 1 1 5 Low Security (%) 40 | . 95 100 . 100 100 21 60 42 100 4 . . 1 . . . . . 88 79 18 Level 1 21 | . 4 . . . . 62 39 57 . 1 . . 98 . . . . . 11 20 . Level 2 7 | . . . . . . 16 . . . 10 . . . . . . . 49 . . 2 Level 3 16 | . . . . . . . . . . 50 . . . . . . . 49 . . 14 Level 4 12 | . . . . . . . . . . 32 . . . . . . . . . . 47 Level 5 . | . . . . . . . . . . . . . . . . . . . . . 4 High Security 1 | . . . . . . . . . . . . . . . . . . . . . 12 Max Security . | . . . . . . . . . . . . . . . . . . . . . . Squads Dispatched 70 | . 3 . . . . 2 4 5 . 17 . . 4 . 1 . . 2 5 2 25 Investigation 14 | . 1 . . . . 2 . 3 . 3 . . . . . . . . 2 1 2 Extermination 13 | . . . . . . . 1 2 . 3 . . 1 . . . . 1 1 . 4 Reinforcement 22 | . 2 . . . . . . . . 5 . . 2 . . . . 1 2 1 9 Assault 10 | . . . . . . . . . . 2 . . . . 1 . . . . . 7 Garrison 11 | . . . . . . . 3 . . 4 . . 1 . . . . . . . 3 Intercept . | . . . . . . . . . . . . . . . . . . . . . . Searches Triggered 3 | . . . . . . . . . . . . . . . . . . 3 . . . Construction Impeded 9 | . . . . . . . . . . 3 . . 1 . . . . 1 . . 4 Haulers Reinforced 4 | . . . . . . . . . . 1 . . 1 . . . . . . 1 1 Active Scanning Responses . | . . . . . . . . . . . . . . . . . . . . . . Cargo Convoy Interrupts . | . . . . . . . . . . . . . . . . . . . . . . Stealth | -11 -10 -10 -10 -9 -8 -8 -7 -6 -6 -6 -6 -6 -5 -5 -5 -5 -4 -4 -3 -2 -1 --------- Run | Yrd Mat Min Exi Min Mat Sto Fac Fac Was Fac Low Low Fac Upp Upp War Pro Fac Res Res Acc Distress Signals 24 | . . . . . . 1 1 1 . 3 . . 1 . . 1 . 3 . 9 4 Communications Jammed . | . . . . . . . . . . . . . . . . . . . . . . Distress Signals . | . . . . . . . . . . . . . . . . . . . . . . Times Spotted 368 | . 10 4 . 5 1 24 14 22 3 60 3 5 22 6 27 1 26 14 13 14 94 Peak Tracking Total 14 | . 4 2 . 3 1 4 5 4 2 6 3 5 5 2 8 1 6 4 4 7 14 Tactical Retreats 17 | . . . . . . 1 . 3 . 2 . . . . . 1 . . 1 . 9 Traps | -11 -10 -10 -10 -9 -8 -8 -7 -6 -6 -6 -6 -6 -5 -5 -5 -5 -4 -4 -3 -2 -1 ------- Run | Yrd Mat Min Exi Min Mat Sto Fac Fac Was Fac Low Low Fac Upp Upp War Pro Fac Res Res Acc Traps Triggered 7 | . . . . . . . . 3 . 2 . . . . . . . 1 . . 1 Indirectly . | . . . . . . . . . . . . . . . . . . . . . . Trap Hack Attempts 34 | . . . . . . 34 . . . . . . . . . . . . . . . Triggered . | . . . . . . . . . . . . . . . . . . . . . . Disarmed 6 | . 6 . . . . . . . . . . . . . . . . . . . . Reprogrammed 6 | . . . . . . 6 . . . . . . . . . . . . . . . Reused 1 | . . . . . . 1 . . . . . . . . . . . . . . . Traps Extracted . | . . . . . . . . . . . . . . . . . . . . . . Installed . | . . . . . . . . . . . . . . . . . . . . . . Triggered 16 | . . . . . . 1 . . . . . . . 1 1 13 . . . . . Most Traps Carried 1 | . . . . . . . . . . . . . . . . . 1 . . . . Machines | -11 -10 -10 -10 -9 -8 -8 -7 -6 -6 -6 -6 -6 -5 -5 -5 -5 -4 -4 -3 -2 -1 ---------- Run | Yrd Mat Min Exi Min Mat Sto Fac Fac Was Fac Low Low Fac Upp Upp War Pro Fac Res Res Acc Machines Disabled 26 | . 2 . . . . . 1 8 . 3 . . 1 . 2 1 . . 1 2 5 Max in Single Turn 2 | . 2 . . . . . 1 1 . 2 . . 1 . 1 . . . 1 1 1 Garrison Access 1 | . . . . . . . . . . 1 . . . . . . . . . . . Energy Cycler 1 | . . . . . . . . . . . . . . . . . . . . . 1 Machines Repaired . | . . . . . . . . . . . . . . . . . . . . . . Machines Dismantled . | . . . . . . . . . . . . . . . . . . . . . . Machines Sabotaged 1 | . . . . . . 1 . . . . . . . . . . . . . . . Overloaded Fab Kills . | . . . . . . . . . . . . . . . . . . . . . . Hacking | -11 -10 -10 -10 -9 -8 -8 -7 -6 -6 -6 -6 -6 -5 -5 -5 -5 -4 -4 -3 -2 -1 --------- Run | Yrd Mat Min Exi Min Mat Sto Fac Fac Was Fac Low Low Fac Upp Upp War Pro Fac Res Res Acc Machines Accessed 45 | . 3 1 1 . 1 9 3 5 . 6 1 . 2 . 1 2 . 1 3 1 5 Terminals 20 | . 2 . . . 1 7 . 2 . 2 . . 1 . . . . . 2 . 3 Fabricators 3 | . . . . . . . 1 . . . . . 1 . . . . . 1 . . Repair Stations 4 | . . . . . . 1 . 1 . 2 . . . . . . . . . . . Recycling Units 7 | . 1 . . . . 1 1 2 . . . . . . . . . 1 . . 1 Scanalyzers 1 | . . . . . . . . . . 1 . . . . . . . . . . . Garrison Access 4 | . . . . . . . 1 . . 1 . . . . . . . . . 1 1 Total Hacks 143 | . 12 1 1 . 6 31 6 28 . 14 1 . 5 . 1 2 . 2 9 2 22 Successful 67 | . 7 1 1 . 3 13 5 14 . 7 1 . 1 . 1 2 . 2 3 . 6 Failed 76 | . 5 . . . 3 18 1 14 . 7 . . 4 . . . . . 6 2 16 Catastrophic 10 | . 1 . . . 1 1 . . . 2 . . . . . . . . 3 1 1 Database Lockouts . | . . . . . . . . . . . . . . . . . . . . . . Manual 36 | . 2 . 1 . 3 8 2 5 . 1 . . 4 . . . . . 3 2 5 Terminals 74 | . 9 . . . 6 23 . 6 . 4 . . 3 . . . . . 7 . 16 Fabricators 5 | . . . . . . . 1 . . . . . 2 . . . . . 2 . . Repair Stations 23 | . . . . . . 3 . 14 . 6 . . . . . . . . . . . Recycling Units 24 | . 3 . . . . 5 3 8 . . . . . . . . . 2 . . 3 Scanalyzers 3 | . . . . . . . . . . 3 . . . . . . . . . . . Garrison Access 8 | . . . . . . . 2 . . 1 . . . . . . . . . 2 3 Terminal Hacks 31 | . 5 1 1 . 3 7 . 2 . 2 1 . . . 1 2 . . 3 . 3 Record 3 | . . . . . . . . . . . . . . . . . . . 1 . 2 Robot Analysis 1 | . 1 . . . . . . . . . . . . . . . . . . . . Prototype ID Bank 2 | . . . . . 1 . . . . . . . . . . . . . 1 . . Open Door 8 | . . 1 . . . 3 . . . . 1 . . . 1 2 . . . . . Alert Level 8 | . 1 . . . 1 1 . 1 . 2 . . . . . . . . 1 . 1 Unreport Threat 1 | . 1 . . . . . . . . . . . . . . . . . . . . Locate Traps 3 | . 1 . . . . 2 . . . . . . . . . . . . . . . Disarm Traps 1 | . 1 . . . . . . . . . . . . . . . . . . . . Reprogram Traps 1 | . . . . . . 1 . . . . . . . . . . . . . . . Dispatch Records 1 | . . . . . 1 . . . . . . . . . . . . . . . . Zone Layout 1 | . . . . . . . . 1 . . . . . . . . . . . . . Derelict Proto ID Bank 1 | . . . 1 . . . . . . . . . . . . . . . . . . Fabricator Hacks . | . . . . . . . . . . . . . . . . . . . . . . Repair Station Hacks 13 | . . . . . . 2 . 9 . 2 . . . . . . . . . . . Scan Component 7 | . . . . . . 1 . 5 . 1 . . . . . . . . . . . Repair 6 | . . . . . . 1 . 4 . 1 . . . . . . . . . . . Recycling Unit Hacks 10 | . 2 . . . . 2 2 1 . . . . . . . . . 2 . . 1 Process 1 | . . . . . . 1 . . . . . . . . . . . . . . . Report Inventory 6 | . 1 . . . . 1 1 1 . . . . . . . . . 1 . . 1 Retrieve Components 3 | . 1 . . . . . 1 . . . . . . . . . . 1 . . . Scanalyzer 2 | . . . . . . . . . . 2 . . . . . . . . . . . Insert Component 1 | . . . . . . . . . . 1 . . . . . . . . . . . Analyze 1 | . . . . . . . . . . 1 . . . . . . . . . . . Garrison Access Hacks 1 | . . . . . . . 1 . . . . . . . . . . . . . . Unlock Access 1 | . . . . . . . 1 . . . . . . . . . . . . . . Unauthorized Hacks 10 | . . . . . . 2 2 2 . 1 . . 1 . . . . . . . 2 Terminals 6 | . . . . . . 2 . 2 . . . . . . . . . . . . 2 Botnet 5 | . . . . . . 1 . 2 . . . . . . . . . . . . 2 Sabotage 1 | . . . . . . 1 . . . . . . . . . . . . . . . Fabricators 2 | . . . . . . . 1 . . . . . 1 . . . . . . . . Liberate 1 | . . . . . . . . . . . . . 1 . . . . . . . . Fabnet 1 | . . . . . . . 1 . . . . . . . . . . . . . . Repair Stations . | . . . . . . . . . . . . . . . . . . . . . . Recycling Units 1 | . . . . . . . 1 . . . . . . . . . . . . . . Mask 1 | . . . . . . . 1 . . . . . . . . . . . . . . Scanalyzers . | . . . . . . . . . . . . . . . . . . . . . . Garrison Access 1 | . . . . . . . . . . 1 . . . . . . . . . . . Jam 1 | . . . . . . . . . . 1 . . . . . . . . . . . Data Cores Recovered . | . . . . . . . . . . . . . . . . . . . . . . Used . | . . . . . . . . . . . . . . . . . . . . . . Hacking Detections 33 | . 3 . . . 1 7 2 4 . 4 . . 2 . . . . 1 3 1 5 Full Trace Events 13 | . 2 . . . . 2 . 2 . 2 . . . . . . . . 2 1 2 Feedback Events 1 | . . . . . . . . . . . . . . . . . . . . . 1 Corruption 1 | . . . . . . . . . . . . . . . . . . . . . 1 Feedback Blocked . | . . . . . . . . . . . . . . . . . . . . . . Robot Schematics Acquired . | . . . . . . . . . . . . . . . . . . . . . . Robots Built . | . . . . . . . . . . . . . . . . . . . . . . Authchips . | . . . . . . . . . . . . . . . . . . . . . . Time . | . . . . . . . . . . . . . . . . . . . . . . Total Robot Build Rating . | . . . . . . . . . . . . . . . . . . . . . . Part Schematics Acquired 1 | . . . . . . . . . . 1 . . . . . . . . . . . Parts Built . | . . . . . . . . . . . . . . . . . . . . . . Authchips . | . . . . . . . . . . . . . . . . . . . . . . Time . | . . . . . . . . . . . . . . . . . . . . . . Total Part Build Rating . | . . . . . . . . . . . . . . . . . . . . . . Parts Repaired 6 | . . . . . . 1 . 4 . 1 . . . . . . . . . . . Time 312 | . . . . . . 38 . 175 . 99 . . . . . . . . . . . Parts Recycled . | . . . . . . . . . . . . . . . . . . . . . . Recycled Matter 235 | . . . . . . 235 . . . . . . . . . . . . . . . Retrieved Matter . | . . . . . . . . . . . . . . . . . . . . . . Retrieved Components 5 | . 1 . . . . . 2 . . . . . . . . . . 2 . . . Parts Scanalyzed 1 | . . . . . . . . . . 1 . . . . . . . . . . . Part Schematics Acquired 1 | . . . . . . . . . . 1 . . . . . . . . . . . Parts Damaged . | . . . . . . . . . . . . . . . . . . . . . . Bothacking | -11 -10 -10 -10 -9 -8 -8 -7 -6 -6 -6 -6 -6 -5 -5 -5 -5 -4 -4 -3 -2 -1 ------------ Run | Yrd Mat Min Exi Min Mat Sto Fac Fac Was Fac Low Low Fac Upp Upp War Pro Fac Res Res Acc Used RIF Installer . | . . . . . . . . . . . . . . . . . . . . . . Robots Hacked 5 | . . . . . . . . . . 1 . . . . 1 1 1 1 . . . Non-combat 2 | . . . . . . . . . . . . . . . . . 1 1 . . . Combat 3 | . . . . . . . . . . 1 . . . . 1 1 . . . . . Robot Hacks Applied 2 | . . . . . . . . . . . . . . . . . 1 1 . . . parse_system 2 | . . . . . . . . . . . . . . . . . 1 1 . . . Relay Couplers Released 3 | . . . . . . . 3 . . . . . . . . . . . . . . Programmers 3 | . . . . . . . 3 . . . . . . . . . . . . . . Fabnet Peak Effective % 3 | . . . . . . . . 3 3 3 3 3 1 1 1 1 . . . . . Autooverrided 3 | . . . . . . . . . . 1 . . . . 1 1 . . . . . Robots Rewired 2 | . . . . . . . . . . . . . . . 2 . . . . . . Allies Hacked 1 | . . . . . . . . . . 1 . . . . . . . . . . . Hacks Repelled . | . . . . . . . . . . . . . . . . . . . . . . Allies | -11 -10 -10 -10 -9 -8 -8 -7 -6 -6 -6 -6 -6 -5 -5 -5 -5 -4 -4 -3 -2 -1 -------- Run | Yrd Mat Min Exi Min Mat Sto Fac Fac Was Fac Low Low Fac Upp Upp War Pro Fac Res Res Acc Total Allies 33 | . . 2 . 1 . . . . 19 1 1 . 5 . 3 1 . . . . . Largest Group 19 | . . 2 2 1 1 . . . 19 9 1 . 3 . 2 1 . . . . . Highest-Rated Group 702 | . . 42 42 31 31 . . . 702 372 141 . 98 . 49 54 . . . . . Highest-Rated Ally 141 | . . 31 31 31 31 . . . 50 85 141 . 49 . 30 54 . . . . . Total Orders 7 | . . . . . . . . . 1 . . . . . 2 2 1 . 1 . . EXPLORE 5 | . . . . . . . . . 1 . . . . . 1 1 1 . 1 . . RETURN 2 | . . . . . . . . . . . . . . . 1 1 . . . . . Ally Attacks 276 | . . 2 . 7 . . . . 60 151 . . 49 . 4 3 . . . . . Total Damage 9336 | . . 22 . 84 . . . . 3605 4171 . . 1184 . 57 213 . . . . . Kills 46 | . . 1 . 2 . . . . 10 29 . . 3 . . 1 . . . . . Allies Corrupted . | . . . . . . . . . . . . . . . . . . . . . . Allies Melted 2 | . . . . . . . . . . . . . . . . . . . . 2 . Intel | -11 -10 -10 -10 -9 -8 -8 -7 -6 -6 -6 -6 -6 -5 -5 -5 -5 -4 -4 -3 -2 -1 ------- Run | Yrd Mat Min Exi Min Mat Sto Fac Fac Was Fac Low Low Fac Upp Upp War Pro Fac Res Res Acc Robot Analysis Total 1 | . 1 . . . . . . . . . . . . . . . . . . . . Derelict Logs Recovered 3 | . . 1 . . . . . . . . 1 . . . . . 1 . . . . Drone Launches 13 | . . . . . . . . . 2 . . . . . 3 2 4 . 2 . . Drone Recoveries 6 | . . . . . . . . . 1 . . . . . 2 . 2 . 1 . . Exploration | -11 -10 -10 -10 -9 -8 -8 -7 -6 -6 -6 -6 -6 -5 -5 -5 -5 -4 -4 -3 -2 -1 ------------- Run | Yrd Mat Min Exi Min Mat Sto Fac Fac Was Fac Low Low Fac Upp Upp War Pro Fac Res Res Acc Turns Passed 17539 | . 158 736 348 105 240 806 871 1424 557 2677 1268 251 644 684 760 612 1496 802 561 1085 1454 Spaces Moved 7846 | 1 88 509 217 51 135 350 467 543 221 906 565 80 215 372 350 366 516 355 207 520 812 Core 731 | . . . . . . . . . . . . . . . . . 353 65 . . 313 Treads 4796 | . . 108 217 51 135 350 252 . 75 566 484 3 86 372 350 366 163 151 201 520 346 Legs 2271 | 1 88 401 . . . . 215 543 146 340 81 77 129 . . . . 91 6 . 153 Wheels . | . . . . . . . . . . . . . . . . . . . . . . Hover . | . . . . . . . . . . . . . . . . . . . . . . Flight 48 | . . . . . . . . . . . . . . . . . . 48 . . . Fastest Speed 50 | 120 120 120 160 160 160 163 123 123 126 110 165 180 105 162 162 162 50 50 170 170 50 Average Speed 182 | 120 120 128 160 160 162 163 157 190 232 255 221 265 167 162 162 162 259 180 170 170 117 Slowest Speed 570 | 120 120 160 160 160 163 163 195 196 265 570 265 270 270 163 163 162 500 515 250 170 250 Overloaded Moves . | . . . . . . . . . . . . . . . . . . . . . . Propulsion Burnouts . | . . . . . . . . . . . . . . . . . . . . . . Robots Hopped . | . . . . . . . . . . . . . . . . . . . . . . Cave-ins Triggered . | . . . . . . . . . . . . . . . . . . . . . . Exploration Rate (%) 38 | 2 23 96 62 16 11 54 18 13 76 36 77 15 6 53 67 96 79 9 6 16 25 Regions Visited 21 Branch Regions 10 Pre-discovered Areas . | . . . . . . . . . . . . . . . . . . . . . . Known Exits Taken 5 | . . . . . 1 . . . . . . . 1 1 1 1 . . . . . Unknown Exits Taken 14 | 1 1 1 1 1 . 1 1 . . 1 1 1 . . . . 1 1 1 1 . Scrap Searched 8 | . . 2 . . . . . . . . 2 . . 1 2 . 1 . . . . Spaces Dug 1 | . . . . . . . . . . . . . . . . . 1 . . . . Terrain Destroyed 571 | . 50 . . . . . . 13 . 56 1 4 6 23 38 . 52 8 4 31 285 Melee 1 | . . . . . . . . . . . . . . . . . 1 . . . . Projectile 155 | . . . . . . . . 12 . 5 1 4 6 22 20 . 48 8 4 15 10 AOE 414 | . 50 . . . . . . 1 . 51 . . . . 18 . 3 . . 16 275 Terrain Rammed . | . . . . . . . . . . . . . . . . . . . . . . Walls Destroyed . | . . . . . . . . . . . . . . . . . . . . . . Machines Disabled . | . . . . . . . . . . . . . . . . . . . . . . Actions | -11 -10 -10 -10 -9 -8 -8 -7 -6 -6 -6 -6 -6 -5 -5 -5 -5 -4 -4 -3 -2 -1 --------- Run | Yrd Mat Min Exi Min Mat Sto Fac Fac Was Fac Low Low Fac Upp Upp War Pro Fac Res Res Acc Total 9713 | . 114 574 219 60 155 511 554 813 262 1082 577 93 368 405 455 386 611 439 353 624 1058 Wait 484 | . . 30 . . . 42 22 159 . 14 . 1 21 . 24 1 10 5 94 1 60 Move 7826 | . 87 508 216 50 134 349 466 543 220 905 564 79 214 371 349 365 515 354 206 519 812 Hop . | . . . . . . . . . . . . . . . . . . . . . . Pick Up 81 | . 4 6 1 . 6 11 5 6 1 10 1 . 8 . 2 1 4 1 4 5 5 Fast Attach 201 | . 2 3 . . 3 7 7 12 14 20 2 1 22 4 14 6 4 32 8 19 21 Attach 83 | . . 2 . . 2 . 2 5 1 9 1 1 6 3 3 1 10 2 3 9 23 Detach 67 | . 1 3 . . . 1 1 4 2 5 . . 9 4 2 1 6 5 7 9 7 Swap 96 | . 2 2 . 1 2 9 11 9 4 10 1 . 16 2 7 3 2 1 . 10 4 Drop 152 | . 4 8 2 . 7 21 14 9 18 21 4 . 12 1 3 8 7 2 1 6 4 Fire 574 | . 14 11 . 6 1 27 20 50 2 62 4 11 57 20 44 . 44 29 20 39 113 Melee 31 | . . . . . . 1 . . . 5 . . . . 4 . 8 3 10 . . Ram 2 | . . . . . . . . . . . . . . . . . 1 1 . . . Kick 18 | . . 1 . . . . 4 11 . 1 . . . . . . . . . . 1 Crush 52 | . . . . 3 . 9 2 . . 16 . . 3 . . . . 4 . 7 8 Escape Stasis 9 | . . . . . . . . 5 . 4 . . . . . . . . . . . Rewire 3 | . . . . . . . . . . . . . . . 3 . . . . . . Trap 34 | . . . . . . 34 . . . . . . . . . . . . . . . Miscellaneous . | . . . . . . . . . . . . . . . . . . . . . . Route ------- -11/Scrapyard -10/Materials -10/Mines (discovered 4 exits: [*Mat x2] / *Exi / *Sub) -10/Exiles -9/Mines -8/Materials -8/Storage -7/Factory (discovered 2 exits: *Fac / Gar) -6/Factory -6/Waste -6/Factory -6/Lower Caves (discovered 2 exits: [*Low] / *Fac) -6/Lower Caves -5/Factory (discovered 2 exits: *Upp x2) -5/Upper Caves -5/Upper Caves -5/Warlord -4/Proximity Caves -4/Factory -3/Research -2/Research -1/Access History --------- Turn | Location | Event 1 | -11/Scrapyard | Discovered new exit (range 0) 1 | -11/Scrapyard | Entered Materials 150 | -10/Materials | Discovered new exit (range 6) 159 | -10/Materials | Entered Mines 240 | -10/Mines | Discovered new exit (range 13) 310 | -10/Mines | Build established: Mutant 375 | -10/Mines | Met a Derelict who couldn't figure out how to use a Trap Extractor 515 | -10/Mines | Discovered new exit (range 10) 587 | -10/Mines | Identified exit to Subcaves 635 | -10/Mines | Discovered new exit (range 12) 859 | -10/Mines | Deemed a non-threat by the Exiles lab entrance 859 | -10/Mines | Discovered new exit (range 5) 895 | -10/Mines | Entered Exiles 895 | -10/Exiles | Accompanied by 2 allies 925 | -10/Exiles | Led the pair of lost Derelicts to a safe place 939 | -10/Exiles | Met 8R-AWN 963 | -10/Exiles | Met EX-HEX 1007 | -10/Exiles | Met EX-BIN 1031 | -10/Exiles | Aligned with FarCom system 1033 | -10/Exiles | Given EX-Vault access code 1075 | -10/Exiles | Opened EX-Vault 1087 | -10/Exiles | Found Firepult 1121 | -10/Exiles | Warned to stay clear of 0b10 Research branches 1142 | -10/Exiles | Exiles lab attacked by MAIN.C 1222 | -10/Exiles | Discovered new exit (range 15) 1243 | -10/Exiles | Left Exiles lab with Firepult 1243 | -10/Exiles | Entered Mines 1246 | -9/Mines | Received a Mining Laser from a helpful Derelict 1325 | -9/Mines | Discovered new exit (range 11) 1348 | -9/Mines | Entered Materials 1348 | -8/Materials | Accompanied by 1 ally 1348 | -8/Materials | Evolved 4 slots: Propulsion x1, Utility x2, Weapon x1 1349 | -8/Materials | Identified exit to Storage 1588 | -8/Materials | Entered Storage 2222 | -8/Storage | Repaired Nuclear Core 2319 | -8/Storage | Discovered new exit (range 10) 2394 | -8/Storage | Entered Factory 2394 | -7/Factory | Evolved 2 slots: Utility x2 2671 | -7/Factory | Build established: Hacker-Skirmisher 2779 | -7/Factory | Identified exit to Garrison 2893 | -7/Factory | Garrison activated, responded to threat 3234 | -7/Factory | Discovered new exit (range 7) 3265 | -7/Factory | Entered another Factory area 3265 | -6/Factory | Evolved 2 slots: Power x1, Weapon x1 3753 | -6/Factory | Repaired Plasma Cannon 3798 | -6/Factory | Repaired Imp. Medium Armor Plating 3891 | -6/Factory | Repaired Broken Plasma Cannon 3919 | -6/Factory | Repaired Sml. Storage Unit 4689 | -6/Factory | Sucked down chute 4689 | -6/Factory | Entered Waste 4728 | -6/Waste | Spotted C-40 Crusher 4730 | -6/Waste | Spotted C-40 Crusher 4753 | -6/Waste | Crushed by Compactor (1 part destroyed, 1 dropped) 4761 | -6/Waste | Crushed by Compactor (1 part destroyed, 1 dropped) 4766 | -6/Waste | Warlord forces began an assault 4770 | -6/Waste | Crushed by Compactor (1 part destroyed, 1 dropped) 4771 | -6/Waste | Found Damper Plating 4774 | -6/Waste | Allies destroyed C-40 Crusher 4801 | -6/Waste | Lost 3 parts (1n1u1w) 4830 | -6/Waste | Build established: Skirmisher 4914 | -6/Waste | Lost 7 allies 4981 | -6/Waste | Spotted C-40 Crusher 4987 | -6/Waste | Destroyed C-40 Crusher 5019 | -6/Waste | Spotted C-40 Crusher 5022 | -6/Waste | Destroyed C-40 Crusher 5188 | -6/Waste | Discovered new exit (range 10) 5225 | -6/Waste | Found Prototype Slashing Weapon 5225 | -6/Waste | Identified Centrium Greatsword 5246 | -6/Waste | Entered Factory 5246 | -6/Factory | Accompanied by 9 allies 5348 | -6/Factory | Build established: Scavenger-Skirmisher 5390 | -6/Factory | Garrison activated, responded to threat 5427 | -6/Factory | Spotted B-75 Beast 5445 | -6/Factory | Destroyed B-75 Beast 5641 | -6/Factory | Garrison activated, responded to threat 5719 | -6/Factory | Lost 3 allies 6537 | -6/Factory | Core integrity fell below 50% 6646 | -6/Factory | First assault squad dispatched 6856 | -6/Factory | Lost 3 parts (1n1u1w) 7337 | -6/Factory | Repaired Centrium Greatsword 7862 | -6/Factory | Discovered new exit (range 15) 7923 | -6/Factory | Entered Lower Caves 8194 | -6/Lower Caves | 1C-UTU showed up to help 8196 | -6/Lower Caves | 1C-UTU revealed a hidden path 8199 | -6/Lower Caves | Build established: Scavenger-Gunner 8229 | -6/Lower Caves | Learned 8 Factory zone layouts 8321 | -6/Lower Caves | Encountered a Warlord checkpoint 9164 | -6/Lower Caves | Discovered new exit (range 12) 9191 | -6/Lower Caves | Entered another Lower Caves area 9214 | -6/Lower Caves | Core integrity fell below 20% 9258 | -6/Lower Caves | Lost 8 parts (1p2n3u2w) 9409 | -6/Lower Caves | Discovered new exit (range 10) 9442 | -6/Lower Caves | Entered Factory 9442 | -5/Factory | Evolved 2 slots: Propulsion x1, Utility x1 9443 | -5/Factory | Identified exit to Upper Caves 9554 | -5/Factory | Lost 3 parts (1p1u1w) 9655 | -5/Factory | Lost 3 allies 9747 | -5/Factory | Build established: Scavenger-Skirmisher 10048 | -5/Factory | Garrison activated, responded to threat 10078 | -5/Factory | Discovered exit to Upper Caves (range 6) 10086 | -5/Factory | Entered Upper Caves 10380 | -5/Upper Caves | Build established: Scavenger-Gunner 10744 | -5/Upper Caves | Attracted the attention of an 0b10 checkpoint 10757 | -5/Upper Caves | Discovered new exit (range 7) 10768 | -5/Upper Caves | Identified exit to Upper Caves 10770 | -5/Upper Caves | Entered another Upper Caves area 10803 | -5/Upper Caves | Attracted the attention of an 0b10 checkpoint 10868 | -5/Upper Caves | System corruption reached 10% 10883 | -5/Upper Caves | Attracted the attention of an 0b10 outpost 10920 | -5/Upper Caves | Destroyed 12 combat bots 10988 | -5/Upper Caves | Lost 5 parts (3p2w) 11070 | -5/Upper Caves | Lost 3 parts (1p1n1w) 11421 | -5/Upper Caves | Discovered new exit (range 21) 11430 | -5/Upper Caves | Build established: Derelict-Gunner 11528 | -5/Upper Caves | Identified exit to Warlord 11530 | -5/Upper Caves | Entered Warlord 11586 | -5/Warlord | System corruption cleaned by Quarantine Array 11707 | -5/Warlord | Met Warlord 11721 | -5/Warlord | Discovered new exit (range 86) 11732 | -5/Warlord | Warlord's base attacked by MAIN.C 11923 | -5/Warlord | Found Prototype Piercing Weapon 11923 | -5/Warlord | Identified Vortex Lance 11926 | -5/Warlord | Found Prototype Energy Gun 11926 | -5/Warlord | Identified Vortex Rail 11930 | -5/Warlord | Found Vortex Rail 11937 | -5/Warlord | Found Prototype Energy Gun 11937 | -5/Warlord | Identified Vortex Rifle 11940 | -5/Warlord | Found Vortex Rifle 12082 | -5/Warlord | Warlord forces counterattacked 12099 | -5/Warlord | Opened side exit 12141 | -5/Warlord | Identified exit to Proximity Caves 12142 | -5/Warlord | Entered Proximity Caves 12222 | -4/Proximity Caves | Build established: Gunner 12305 | -4/Proximity Caves | Spotter reported a threat 12378 | -4/Proximity Caves | Learned Research terminal intel 12461 | -4/Proximity Caves | Attracted the attention of an 0b10 checkpoint 12462 | -4/Proximity Caves | Spotter reported a threat 12492 | -4/Proximity Caves | Core integrity fell below 50% 12515 | -4/Proximity Caves | Spotter reported a threat 12537 | -4/Proximity Caves | Lost 13 parts (2p6n1u4w) 12541 | -4/Proximity Caves | Spotter reported a threat 12753 | -4/Proximity Caves | Build established: Mutant 12870 | -4/Proximity Caves | Spotter reported a threat 12923 | -4/Proximity Caves | Spotter reported a threat 13134 | -4/Proximity Caves | Spotted B-86 Titan 13169 | -4/Proximity Caves | Core integrity fell below 20% 13174 | -4/Proximity Caves | Destroyed B-86 Titan 13202 | -4/Proximity Caves | Lost 5 parts (3u2w) 13561 | -4/Proximity Caves | Released all parts (5) 13634 | -4/Proximity Caves | Discovered new exit (range 6) 13638 | -4/Proximity Caves | Entered Factory 13638 | -4/Factory | Evolved 2 slots: Utility x1, Weapon x1 13920 | -4/Factory | Search patrols dispatched 14138 | -4/Factory | Search patrols dispatched 14175 | -4/Factory | Build established: Scavenger-Skirmisher 14271 | -4/Factory | Lost 5 parts (1p3n1w) 14320 | -4/Factory | Core integrity fell below 50% 14363 | -4/Factory | Lost 7 parts (1p2n4w) 14388 | -4/Factory | Search patrols dispatched 14421 | -4/Factory | Discovered new exit (range 11) 14440 | -4/Factory | Entered Research 14440 | -3/Research | Evolved 2 slots: Propulsion x1, Utility x1 14441 | -3/Research | Loaded intel: 22 terminal locations 14596 | -3/Research | Build established: Scavenger-Mutant 14970 | -3/Research | Discovered new exit (range 10) 15001 | -3/Research | Entered another Research area 15001 | -2/Research | Warlord forces began assault on 0b10 15001 | -2/Research | Evolved 2 slots: Propulsion x1, Weapon x1 15111 | -2/Research | Research machine network offline 15142 | -2/Research | Lost 9 parts (1p3u5w) 15312 | -2/Research | Discovered new exit (range 12) 15418 | -2/Research | Borebot progress halted 15443 | -2/Research | Build established: Scavenger-Executioner 15502 | -2/Research | Borebot progress halted 15593 | -2/Research | Spotted Striker 15613 | -2/Research | Destroyed Striker 15666 | -2/Research | Lost 3 parts (1n1u1w) 15754 | -2/Research | Found Unknown Launcher 15754 | -2/Research | Identified Fusion Bomb Launcher 15757 | -2/Research | Found Fusion Bomb Launcher 15760 | -2/Research | Found Fusion Bomb Launcher 15844 | -2/Research | Met up with Warlord 16044 | -2/Research | Borebot progress halted 16086 | -2/Research | Entered Access 16086 | -1/Access | Evolved 2 slots: Propulsion x2 16426 | -1/Access | Lost 3 parts (1n1u1w) 16462 | -1/Access | Destroyed 16 combat bots 16594 | -1/Access | Garrison activated, responded to threat 16651 | -1/Access | Destroyed 9 combat bots 16657 | -1/Access | Lost 3 parts (1n1u1w) 16728 | -1/Access | Lost 3 parts (1p1u1w) 16989 | -1/Access | Lost 5 parts (1p1n2u1w) 17051 | -1/Access | Lost 9 parts (2p3n1u3w) 17127 | -1/Access | First assault squad dispatched 17165 | -1/Access | Core integrity fell below 50% 17192 | -1/Access | Lost 4 parts (2n2w) 17201 | -1/Access | Destroyed 7 combat bots 17278 | -1/Access | System corruption reached 10% 17281 | -1/Access | Lost 8 parts (1p2n1u4w) 17354 | -1/Access | Garrison activated, responded to threat 17360 | -1/Access | High security lockdown imminent 17365 | -1/Access | Core integrity fell below 20% 17366 | -1/Access | Released all parts (11) 17415 | -1/Access | Spotted B-99 Colossus 17440 | -1/Access | High security lockdown engaged 17488 | -1/Access | Energy Cycler disabled 17540 | -1/Access | Destroyed by G-73 Enforcer with Phase Gun Last Messages --------------- 17467_ Acquired Adv. Datajack. 17477_ System corrupted: Component data lost. 17488_ ALERT: Power surge detected, dispatching additional patrols. 17494_ Acquired Prototype Treads. 17494_ Identified Hdn. Centrium Heavy Treads. 17497_ Acquired Unknown Processor. 17497_ Identified Imp. Corruption Screen. 17505_ System corrupted: Component data lost. 17507_ C-30 ARC bursts open, deploying its payload. 17507_ G-73 Enforcer unfolds itself. 17507_ L-61 Swordsman unfolds itself. 17507_ M-36 Artificer unfolds itself. 17521_ ,OEKQC,L:FIO4:RGM TLS1EHNGFZPIRVH7TI3 17529_ C-30 ARC bursts open, deploying its payload. 17529_ G-73 Enforcer unfolds itself. 17529_ L-61 Swordsman unfolds itself. 17529_ G-73 Enforcer unfolds itself. 17529_ E-15 Imp unfolds itself. 17536_ System corrupted: Substantial component data lost. 17537_ E-15 Imp destroyed. Map ----- +----------------------------------------------------+ | ???# #??# """ #### # # | | ???# #??# " + # = # | | ???# #??# #### # # | | ???# #??# #??# ######## | | ???# ########+######## #??????# | | ???# "%" ######## | | ???# " | | ???# | | ####+##g | | # # b " " " | | # + """ """ """ | | # # g """ """ """ | | # ! # l gg " " " | | # # % | | #! + | | # # | | # #### ######### | | # #??# #???????? | | # /#??# #???????? | | # =%#### #???????? | | # !+ #???????? | | ########## #???????? | | ?# = # ######### | | ?# + + | | ?# # ########## | | ??########@ #????????# | | ?????????# +????????# | | ?????????# ##### #????????# | | ?????????# #???#??????????# | | ?????????# #??????????????# | | ?????????# #??????????????# | | ?????????# #??????????????# | | ?????????# #??????????????# | | ?????????# #??????????????# | | ?????????? #??????????????# | | ?????????? #??????????????# | | ?????????? #??????????????### | | ?????????? #????????????????? | | ?????????? #????????????????? | | ?????????? ???????????????????? | | ??????????+##?????????????????????? | | ??????????????????????????????????? | | ??????????????????????????????????? | | ??????????????????????????????????? | | ??????????????????????????????????? | | ??????????????????????????????????? | | ??????????????????????????????????? | | ??????????????????????????????????? | | ??????????????????????????????????? | | ??????????????????????????????????? | +----------------------------------------------------+ Best States ------------- Heat Dissipation 132 Energy Generation 45 Energy Capacity 600 Matter Stores 300 Matter Capacity 300 Sight Range 18 Robot Scan Range 14 Terrain Scan Range 14 Terrain Scan Density 210 Additional Mass Support 12 Corruption Block 15 Armor Coverage 1600 Resistance: EM 90 Weapon Shielding 33 Phase Shifting 15 Evasion (%) 55 Melee Accuracy 6 Target Analysis 6 Armor Integrity Analysis 40 Recoil Reduction 8 Energy Filtering 50 Particle Charging 20 Salvage Targeting 4 Offensive Hacking 12 Defensive Hacking 26 Item Schematics ----------------- Centrium Greatsword | -6/Factory | Scanalyzed Robot Schematics ------------------ None Fabricated ------------ Nothing Alien Tech Used ----------------- None Achievements -------------- Pyromaniac Challenges ------------ None Game ------ Seed PowerChipWand Manual? 0 Play Time 01:39:53 Cumulative 619.3 hours Start 2024.01.24 @ 16:58:58 End 2024.01.24 @ 18:35:46 Sessions 1 Manual Loads 0 Difficulty Rogue Special Mode None Game No. 567 Rogue 294 Adventurer 123 Explorer 150 Win Type - Total 25 Types 19/0/4/1/0/0/0/1/0 Lore% 80 Gallery% 90 Achievement% 76 Wizard Run 0 Options --------- ASCII 0 Keyboard 1 Movement Numpad Keybinds 0 Fullscreen 2 Font 18/X11Bold Map View 76x50 Zoom Use 0% Tactical HUD 1 Map Filters NONE Filters NONE Steam 1 RUN: dff39dcc-1ff8-4777-a3c2-311fdcddb33a